[Event "Titled Tuesday Blitz May 2 Late 2023"]
[White "Kramnik, Vladimir"]
[Black "Andreikin, Dmitry"]
[WhiteFideId "4101588"]
[BlackFideId "4158814"]
[WhiteElo "2712"]
[BlackElo "2736"]
[Result "0-1"]
[Round "05"]
[TimeControl "180+2"]
[Date "2023.05.02"]
[WhiteClock "0:00:02"]
[BlackClock "0:00:08"]

1. e4 {[%clk 0:03:00]}  c5 {[%clk 0:02:58]} 2. Nf3 {[%clk 0:03:00]}  Nc6 {[%clk 0:02:59]} 3. d4 {[%clk 0:03:00]}  cxd4 {[%clk 0:02:59]} 4. Nxd4 {[%clk 0:03:00]}  Nf6 {[%clk 0:03:00]} 5. Nc3 {[%clk 0:02:59]}  e6 {[%clk 0:03:01]} 6. Ndb5 {[%clk 0:02:57]}  Bb4 {[%clk 0:02:57]} 7. a3 {[%clk 0:02:56]}  Bxc3+ {[%clk 0:02:57]} 8. Nxc3 {[%clk 0:02:56]}  d5 {[%clk 0:02:58]} 9. Bd3 {[%clk 0:02:55]}  dxe4 {[%clk 0:02:55]} 10. Nxe4 {[%clk 0:02:55]}  Nxe4 {[%clk 0:02:55]} 11. Bxe4 {[%clk 0:02:56]}  Qxd1+ {[%clk 0:02:55]} 12. Kxd1 {[%clk 0:02:56]}  Bd7 {[%clk 0:02:56]} 13. Bd2 {[%clk 0:02:55]}  O-O-O {[%clk 0:02:54]} 14. Re1 {[%clk 0:02:52]}  f5 {[%clk 0:02:52]} 15. Bxc6 {[%clk 0:02:45]}  Bxc6 {[%clk 0:02:52]} 16. f3 {[%clk 0:02:45]}  g5 {[%clk 0:02:50]} 17. Kc1 {[%clk 0:02:33]}  g4 {[%clk 0:02:33]} 18. Rxe6 {[%clk 0:02:31]}  gxf3 {[%clk 0:02:27]} 19. gxf3 {[%clk 0:02:31]}  Bxf3 {[%clk 0:02:16]} 20. b3 {[%clk 0:02:26]}  Rhg8 {[%clk 0:02:15]} 21. Be3 {[%clk 0:02:09]}  Rg2 {[%clk 0:02:11]} 22. Kb2 {[%clk 0:01:58]}  Re2 {[%clk 0:02:10]} 23. Re5 {[%clk 0:01:49]}  b6 {[%clk 0:02:09]} 24. Bf4 {[%clk 0:01:42]}  Be4 {[%clk 0:01:58]} 25. Rc1 {[%clk 0:01:41]}  Rd7 {[%clk 0:01:55]} 26. Re8+ {[%clk 0:01:39]}  Kb7 {[%clk 0:01:55]} 27. Rb8+ {[%clk 0:01:38]}  Ka6 {[%clk 0:01:52]} 28. Rc8 {[%clk 0:01:36]}  h5 {[%clk 0:01:42]} 29. Rg1 {[%clk 0:01:31]}  Rf2 {[%clk 0:01:33]} 30. Bg3 {[%clk 0:01:21]}  Re2 {[%clk 0:01:34]} 31. Bf4 {[%clk 0:01:15]}  Rf2 {[%clk 0:01:34]} 32. Bg3 {[%clk 0:01:13]}  Rf3 {[%clk 0:01:35]} 33. Re1 {[%clk 0:01:02]}  Rd2 {[%clk 0:01:29]} 34. a4 {[%clk 0:00:57]}  h4 {[%clk 0:01:23]} 35. Bxh4 {[%clk 0:00:51]}  Kb7 {[%clk 0:01:23]} 36. Rc4 {[%clk 0:00:48]}  Rxh2 {[%clk 0:01:22]} 37. Bf6 {[%clk 0:00:45]}  Rff2 {[%clk 0:01:18]} 38. Rc1 {[%clk 0:00:45]}  Re2 {[%clk 0:01:10]} 39. b4 {[%clk 0:00:44]}  Bd5 {[%clk 0:00:44]} 40. Rd4 {[%clk 0:00:42]}  Kc6 {[%clk 0:00:41]} 41. b5+ {[%clk 0:00:39]}  Kd6 {[%clk 0:00:30]} 42. Bg5 {[%clk 0:00:29]}  Ke6 {[%clk 0:00:25]} 43. Bf4 {[%clk 0:00:29]}  Rhf2 {[%clk 0:00:23]} 44. Bg3 {[%clk 0:00:21]}  Rf3 {[%clk 0:00:20]} 45. Re1 {[%clk 0:00:17]}  Rxe1 {[%clk 0:00:13]} 46. Bxe1 {[%clk 0:00:17]}  f4 {[%clk 0:00:13]} 47. Bd2 {[%clk 0:00:15]}  Ke5 {[%clk 0:00:14]} 48. Bc3 {[%clk 0:00:15]}  Ke6 {[%clk 0:00:13]} 49. Bd2 {[%clk 0:00:14]}  Ke5 {[%clk 0:00:14]} 50. Bc3 {[%clk 0:00:13]}  Re3 {[%clk 0:00:10]} 51. Rd2+ {[%clk 0:00:12]}  Ke6 {[%clk 0:00:09]} 52. Bd4 {[%clk 0:00:11]}  Re4 {[%clk 0:00:09]} 53. Kc3 {[%clk 0:00:10]}  f3 {[%clk 0:00:09]} 54. Rh2 {[%clk 0:00:10]}  Re2 {[%clk 0:00:05]} 55. Rh6+ {[%clk 0:00:09]}  Kf5 {[%clk 0:00:04]} 56. Rf6+ {[%clk 0:00:08]}  Kg4 {[%clk 0:00:04]} 57. Rd6 {[%clk 0:00:07]}  Be4 {[%clk 0:00:04]} 58. Re6 {[%clk 0:00:06]}  Rxc2+ {[%clk 0:00:05]} 59. Kb4 {[%clk 0:00:05]}  Re2 {[%clk 0:00:06]} 60. a5 {[%clk 0:00:04]}  Kf5 {[%clk 0:00:05]} 61. Re5+ {[%clk 0:00:03]}  Kf4 {[%clk 0:00:06]} 62. axb6 {[%clk 0:00:03]}  axb6 {[%clk 0:00:06]} 63. Re7 {[%clk 0:00:03]}  f2 {[%clk 0:00:06]} 64. Rf7+ {[%clk 0:00:02]}  Bf5 {[%clk 0:00:07]} 65. Bxf2 {[%clk 0:00:02]}  Rxf2 {[%clk 0:00:07]} 66. Rf6 {[%clk 0:00:03]}  Rb2+ {[%clk 0:00:08]} 67. Kc4 {[%clk 0:00:02]}  Ke5 {[%clk 0:00:08]} 68. Rxb6 {[%clk 0:00:01]}  Be6+ {[%clk 0:00:09]} 69. Kc5 {[%clk 0:00:01]}  Rc2+ {[%clk 0:00:08]} 70. Kb4 {[%clk 0:00:01]}  Bd5 {[%clk 0:00:09]} 71. Rb8 {[%clk 0:00:01]}  Kd4 {[%clk 0:00:09]} 72. Rd8 {[%clk 0:00:01]}  Rb2+ {[%clk 0:00:10]} 73. Ka5 {[%clk 0:00:01]}  Kc5 {[%clk 0:00:10]} 74. Rc8+ {[%clk 0:00:01]}  Kd6 {[%clk 0:00:11]} 75. Kb6 {[%clk 0:00:02]}  Be6 {[%clk 0:00:10]} 76. Rc7 {[%clk 0:00:02]}  Bd7 {[%clk 0:00:10]} 77. Rc5 {[%clk 0:00:02]}  Be8 {[%clk 0:00:10]} 78. Rg5 {[%clk 0:00:02]}  Bf7 {[%clk 0:00:10]} 79. Rf5 {[%clk 0:00:02]}  Be6 {[%clk 0:00:10]} 80. Rc5 {[%clk 0:00:02]}  Rf2 {[%clk 0:00:10]} 81. Rc6+ {[%clk 0:00:02]}  Ke7 {[%clk 0:00:10]} 82. Rc7+ {[%clk 0:00:02]}  Bd7 {[%clk 0:00:10]} 83. Kb7 {[%clk 0:00:03]}  Kd6 {[%clk 0:00:10]} 84. b6 {[%clk 0:00:03]}  Rf7 {[%clk 0:00:09]} 85. Kb8 {[%clk 0:00:03]}  Rg7 {[%clk 0:00:08]} 86. Ka7 {[%clk 0:00:03]}  Rg5 {[%clk 0:00:07]} 87. Kb7 {[%clk 0:00:02]}  Rb5 {[%clk 0:00:07]} 88. Rc2 {[%clk 0:00:02]}  Be6 {[%clk 0:00:07]} 89. Rd2+ {[%clk 0:00:02]}  Bd5+ {[%clk 0:00:08]} 90. Ka6 {[%clk 0:00:01]}  Rb3 {[%clk 0:00:08]} 91. Ka5 {[%clk 0:00:01]}  Kc5 {[%clk 0:00:07]} 92. Rc2+ {[%clk 0:00:01]}  Bc4 {[%clk 0:00:07]} 93. Rxc4+ {[%clk 0:00:01]}  Kxc4 {[%clk 0:00:07]} 94. Ka6 {[%clk 0:00:02]}  Kc5 {[%clk 0:00:08]} 95. b7 {[%clk 0:00:02]}  Ra3# {[%clk 0:00:08]} 0-1


[Site "https://www.chess.com"]

[Event "Titled Tuesday Blitz May 2 Late 2023"]
[White "Livaic, Leon"]
[Black "Matlakov, Maxim"]
[WhiteFideId "14531534"]
[BlackFideId "4168003"]
[WhiteElo "2509"]
[BlackElo "2666"]
[Result "1/2-1/2"]
[Round "05"]
[TimeControl "180+2"]
[Date "2023.05.02"]
[WhiteClock "0:00:07"]
[BlackClock "0:00:04"]

1. d4 {[%clk 0:02:59]}  Nf6 {[%clk 0:02:59]} 2. c4 {[%clk 0:03:00]}  e6 {[%clk 0:03:00]} 3. Nf3 {[%clk 0:03:00]}  d5 {[%clk 0:03:00]} 4. Nc3 {[%clk 0:03:01]}  Be7 {[%clk 0:02:58]} 5. g3 {[%clk 0:02:59]}  O-O {[%clk 0:02:56]} 6. Bg2 {[%clk 0:03:00]}  Nbd7 {[%clk 0:02:53]} 7. Qd3 {[%clk 0:02:57]}  Nb6 {[%clk 0:02:51]} 8. b3 {[%clk 0:02:25]}  c5 {[%clk 0:02:50]} 9. cxd5 {[%clk 0:02:05]}  Nbxd5 {[%clk 0:02:49]} 10. Nxd5 {[%clk 0:02:03]}  Nxd5 {[%clk 0:02:35]} 11. Bb2 {[%clk 0:01:53]}  cxd4 {[%clk 0:02:30]} 12. O-O {[%clk 0:01:50]}  Bd7 {[%clk 0:02:21]} 13. Qxd4 {[%clk 0:01:48]}  Bf6 {[%clk 0:02:20]} 14. Qd2 {[%clk 0:01:47]}  Bxb2 {[%clk 0:02:13]} 15. Qxb2 {[%clk 0:01:47]}  Rc8 {[%clk 0:02:08]} 16. Rac1 {[%clk 0:01:44]}  Bb5 {[%clk 0:02:00]} 17. Rxc8 {[%clk 0:01:38]}  Qxc8 {[%clk 0:02:01]} 18. Rc1 {[%clk 0:01:38]}  Qd7 {[%clk 0:02:00]} 19. Nd4 {[%clk 0:01:22]}  Ba6 {[%clk 0:01:59]} 20. e3 {[%clk 0:01:17]}  h6 {[%clk 0:01:24]} 21. Qc2 {[%clk 0:01:09]}  Nb4 {[%clk 0:01:21]} 22. Qc7 {[%clk 0:01:08]}  Qxc7 {[%clk 0:01:05]} 23. Rxc7 {[%clk 0:01:08]}  Nxa2 {[%clk 0:01:05]} 24. Bxb7 {[%clk 0:01:09]}  Bd3 {[%clk 0:01:01]} 25. Nc6 {[%clk 0:00:52]}  a6 {[%clk 0:01:01]} 26. Rd7 {[%clk 0:00:34]}  Bb5 {[%clk 0:00:59]} 27. Rd2 {[%clk 0:00:34]}  Nc3 {[%clk 0:00:53]} 28. Nd4 {[%clk 0:00:33]}  Rb8 {[%clk 0:00:51]} 29. Nxb5 {[%clk 0:00:33]}  axb5 {[%clk 0:00:52]} 30. Bf3 {[%clk 0:00:27]}  Rc8 {[%clk 0:00:49]} 31. Rd7 {[%clk 0:00:26]}  g6 {[%clk 0:00:48]} 32. Rb7 {[%clk 0:00:26]}  Kg7 {[%clk 0:00:47]} 33. Kg2 {[%clk 0:00:24]}  Kf6 {[%clk 0:00:46]} 34. h4 {[%clk 0:00:23]}  g5 {[%clk 0:00:46]} 35. hxg5+ {[%clk 0:00:23]}  hxg5 {[%clk 0:00:47]} 36. Rb6 {[%clk 0:00:23]}  Ke5 {[%clk 0:00:42]} 37. Bc6 {[%clk 0:00:18]}  b4 {[%clk 0:00:34]} 38. Bf3 {[%clk 0:00:13]}  Na2 {[%clk 0:00:34]} 39. Be2 {[%clk 0:00:10]}  Rc2 {[%clk 0:00:31]} 40. Bc4 {[%clk 0:00:10]}  Nc3 {[%clk 0:00:29]} 41. Rxb4 {[%clk 0:00:09]}  Nd1 {[%clk 0:00:26]} 42. Rb5+ {[%clk 0:00:08]}  Kf6 {[%clk 0:00:27]} 43. Kf1 {[%clk 0:00:07]}  Nxf2 {[%clk 0:00:24]} 44. Ke1 {[%clk 0:00:07]}  Ng4 {[%clk 0:00:22]} 45. e4 {[%clk 0:00:08]}  Ne3 {[%clk 0:00:19]} 46. e5+ {[%clk 0:00:08]}  Kg7 {[%clk 0:00:17]} 47. Bd3 {[%clk 0:00:08]}  Ng2+ {[%clk 0:00:13]} 48. Kd1 {[%clk 0:00:09]}  Ne3+ {[%clk 0:00:14]} 49. Ke1 {[%clk 0:00:09]}  Rg2 {[%clk 0:00:14]} 50. b4 {[%clk 0:00:10]}  Rb2 {[%clk 0:00:13]} 51. Rb7 {[%clk 0:00:09]}  Ng4 {[%clk 0:00:13]} 52. b5 {[%clk 0:00:08]}  Nxe5 {[%clk 0:00:13]} 53. Be2 {[%clk 0:00:09]}  Kf6 {[%clk 0:00:13]} 54. Kd1 {[%clk 0:00:08]}  g4 {[%clk 0:00:13]} 55. b6 {[%clk 0:00:07]}  Rb3 {[%clk 0:00:12]} 56. Kc2 {[%clk 0:00:05]}  Rxg3 {[%clk 0:00:12]} 57. Rc7 {[%clk 0:00:06]}  Rg2 {[%clk 0:00:10]} 58. b7 {[%clk 0:00:05]}  Rxe2+ {[%clk 0:00:10]} 59. Kc3 {[%clk 0:00:06]}  Re3+ {[%clk 0:00:10]} 60. Kc2 {[%clk 0:00:07]}  Re2+ {[%clk 0:00:08]} 61. Kc3 {[%clk 0:00:07]}  Re3+ {[%clk 0:00:06]} 62. Kc2 {[%clk 0:00:07]}  Re2+ {[%clk 0:00:04]} 1/2-1/2


[Site "https://www.chess.com"]

[Event "Titled Tuesday Blitz May 2 Late 2023"]
[White "Sai Krishna G V"]
[Black "Bortnyk, Mykola"]
[WhiteFideId "5028280"]
[BlackFideId "14120836"]
[WhiteElo "2359"]
[BlackElo "2582"]
[Result "0-1"]
[Round "05"]
[TimeControl "180+2"]
[Date "2023.05.02"]
[WhiteClock "0:00:01"]
[BlackClock "0:00:33"]

1. e4 {[%clk 0:03:00]}  Nf6 {[%clk 0:02:59]} 2. e5 {[%clk 0:02:59]}  Nd5 {[%clk 0:02:59]} 3. d4 {[%clk 0:02:59]}  d6 {[%clk 0:03:00]} 4. c4 {[%clk 0:02:59]}  Nb6 {[%clk 0:03:00]} 5. f4 {[%clk 0:02:58]}  dxe5 {[%clk 0:02:59]} 6. fxe5 {[%clk 0:02:58]}  Nc6 {[%clk 0:02:59]} 7. Be3 {[%clk 0:02:57]}  Bf5 {[%clk 0:02:59]} 8. Nf3 {[%clk 0:02:56]}  e6 {[%clk 0:03:00]} 9. Be2 {[%clk 0:02:54]}  Qd7 {[%clk 0:02:59]} 10. O-O {[%clk 0:02:46]}  O-O-O {[%clk 0:02:54]} 11. a3 {[%clk 0:02:34]}  f6 {[%clk 0:02:52]} 12. exf6 {[%clk 0:02:16]}  gxf6 {[%clk 0:02:52]} 13. b4 {[%clk 0:02:16]}  Rg8 {[%clk 0:02:45]} 14. b5 {[%clk 0:01:52]}  Qg7 {[%clk 0:02:29]} 15. Rf2 {[%clk 0:01:28]}  Ne5 {[%clk 0:02:25]} 16. Nxe5 {[%clk 0:01:26]}  fxe5 {[%clk 0:02:25]} 17. d5 {[%clk 0:01:25]}  exd5 {[%clk 0:02:21]} 18. Qf1 {[%clk 0:01:12]}  Bxb1 {[%clk 0:02:06]} 19. Rxb1 {[%clk 0:01:09]}  d4 {[%clk 0:02:07]} 20. Rf7 {[%clk 0:01:00]}  Qg6 {[%clk 0:01:58]} 21. Bd3 {[%clk 0:00:47]}  e4 {[%clk 0:01:56]} 22. Rf6 {[%clk 0:00:47]}  Qe8 {[%clk 0:01:46]} 23. Qf5+ {[%clk 0:00:43]}  Kb8 {[%clk 0:01:44]} 24. Re6 {[%clk 0:00:39]}  Qd7 {[%clk 0:01:42]} 25. Bg5 {[%clk 0:00:19]}  exd3 {[%clk 0:01:27]} 26. Bxd8 {[%clk 0:00:18]}  Qxd8 {[%clk 0:01:26]} 27. Qxd3 {[%clk 0:00:16]}  Bc5 {[%clk 0:01:23]} 28. Rbe1 {[%clk 0:00:16]}  Nc8 {[%clk 0:01:21]} 29. Kh1 {[%clk 0:00:16]}  h5 {[%clk 0:01:21]} 30. Qf5 {[%clk 0:00:15]}  b6 {[%clk 0:01:16]} 31. Qxh5 {[%clk 0:00:15]}  d3 {[%clk 0:01:16]} 32. Qd5 {[%clk 0:00:13]}  Qxd5 {[%clk 0:01:03]} 33. cxd5 {[%clk 0:00:14]}  Rd8 {[%clk 0:01:03]} 34. Rd1 {[%clk 0:00:12]}  Rxd5 {[%clk 0:01:03]} 35. g4 {[%clk 0:00:13]}  Nd6 {[%clk 0:00:54]} 36. h4 {[%clk 0:00:13]}  Rd4 {[%clk 0:00:54]} 37. h5 {[%clk 0:00:11]}  Rxg4 {[%clk 0:00:53]} 38. Rxd3 {[%clk 0:00:12]}  Rh4+ {[%clk 0:00:53]} 39. Kg2 {[%clk 0:00:12]}  Rxh5 {[%clk 0:00:54]} 40. Kf3 {[%clk 0:00:13]}  Rh3+ {[%clk 0:00:53]} 41. Ke2 {[%clk 0:00:13]}  Rxd3 {[%clk 0:00:53]} 42. Kxd3 {[%clk 0:00:14]}  Nxb5 {[%clk 0:00:51]} 43. a4 {[%clk 0:00:12]}  Nd6 {[%clk 0:00:51]} 44. Kc3 {[%clk 0:00:12]}  Kb7 {[%clk 0:00:51]} 45. Kb3 {[%clk 0:00:12]}  a6 {[%clk 0:00:51]} 46. Rh6 {[%clk 0:00:13]}  b5 {[%clk 0:00:50]} 47. axb5 {[%clk 0:00:13]}  axb5 {[%clk 0:00:51]} 48. Rh5 {[%clk 0:00:13]}  Bb6 {[%clk 0:00:45]} 49. Kb4 {[%clk 0:00:14]}  c5+ {[%clk 0:00:44]} 50. Kb3 {[%clk 0:00:15]}  Kc6 {[%clk 0:00:44]} 51. Rh8 {[%clk 0:00:13]}  c4+ {[%clk 0:00:45]} 52. Kb4 {[%clk 0:00:13]}  Bc5+ {[%clk 0:00:44]} 53. Ka5 {[%clk 0:00:13]}  c3 {[%clk 0:00:42]} 54. Rh2 {[%clk 0:00:09]}  Nc4+ {[%clk 0:00:42]} 55. Ka6 {[%clk 0:00:09]}  Bd6 {[%clk 0:00:38]} 56. Rh4 {[%clk 0:00:06]}  c2 {[%clk 0:00:36]} 57. Rh1 {[%clk 0:00:03]}  Bf4 {[%clk 0:00:35]} 58. Rh8 {[%clk 0:00:01]}  c1=Q {[%clk 0:00:34]} 59. Rc8+ {[%clk 0:00:01]}  Bc7 {[%clk 0:00:33]} 0-1


[Site "https://www.chess.com"]

[Event "Titled Tuesday Blitz May 2 Late 2023"]
[White "Bluebaum, Matthias"]
[Black "Mekhitarian, Krikor Sevag"]
[WhiteFideId "24651516"]
[BlackFideId "2107660"]
[WhiteElo "2638"]
[BlackElo "2604"]
[Result "0-1"]
[Round "05"]
[TimeControl "180+2"]
[Date "2023.05.02"]
[WhiteClock "0:00:16"]
[BlackClock "0:00:15"]

1. d4 {[%clk 0:03:00]}  Nf6 {[%clk 0:02:58]} 2. c4 {[%clk 0:03:01]}  g6 {[%clk 0:02:58]} 3. Nc3 {[%clk 0:03:01]}  d5 {[%clk 0:02:58]} 4. cxd5 {[%clk 0:03:02]}  Nxd5 {[%clk 0:02:59]} 5. e4 {[%clk 0:03:03]}  Nxc3 {[%clk 0:02:59]} 6. bxc3 {[%clk 0:03:04]}  Bg7 {[%clk 0:02:59]} 7. Nf3 {[%clk 0:03:05]}  c5 {[%clk 0:02:59]} 8. Bb5+ {[%clk 0:03:05]}  Nc6 {[%clk 0:02:58]} 9. O-O {[%clk 0:03:05]}  O-O {[%clk 0:02:53]} 10. Bxc6 {[%clk 0:03:06]}  bxc6 {[%clk 0:02:53]} 11. Qc2 {[%clk 0:03:06]}  cxd4 {[%clk 0:02:40]} 12. cxd4 {[%clk 0:03:07]}  Bg4 {[%clk 0:02:40]} 13. Ne5 {[%clk 0:03:08]}  Qxd4 {[%clk 0:02:40]} 14. Bb2 {[%clk 0:03:08]}  Qb6 {[%clk 0:02:40]} 15. Rab1 {[%clk 0:03:09]}  Bxe5 {[%clk 0:02:39]} 16. Bxe5 {[%clk 0:03:10]}  Qa5 {[%clk 0:02:33]} 17. Bc3 {[%clk 0:03:09]}  Qc5 {[%clk 0:02:33]} 18. Qb2 {[%clk 0:03:10]}  Qc4 {[%clk 0:02:19]} 19. f3 {[%clk 0:03:00]}  Be6 {[%clk 0:02:18]} 20. Rfc1 {[%clk 0:02:58]}  Qxa2 {[%clk 0:01:48]} 21. Qb4 {[%clk 0:02:48]}  Rfe8 {[%clk 0:01:42]} 22. Ra1 {[%clk 0:02:05]}  Qc4 {[%clk 0:01:32]} 23. Qa3 {[%clk 0:02:05]}  Qe2 {[%clk 0:01:28]} 24. Qc5 {[%clk 0:01:58]}  Qb5 {[%clk 0:01:25]} 25. Qe3 {[%clk 0:01:55]}  f6 {[%clk 0:01:22]} 26. Ra5 {[%clk 0:01:45]}  Qb6 {[%clk 0:01:17]} 27. Rc5 {[%clk 0:01:46]}  a5 {[%clk 0:01:14]} 28. Bd4 {[%clk 0:01:46]}  Red8 {[%clk 0:01:02]} 29. h4 {[%clk 0:01:32]}  Qb4 {[%clk 0:00:48]} 30. Bc3 {[%clk 0:01:24]}  Rd3 {[%clk 0:00:42]} 31. Qf2 {[%clk 0:01:17]}  Qb6 {[%clk 0:00:40]} 32. h5 {[%clk 0:01:13]}  Rad8 {[%clk 0:00:40]} 33. Bxa5 {[%clk 0:01:12]}  Rd1+ {[%clk 0:00:39]} 34. Kh2 {[%clk 0:01:00]}  Qb8+ {[%clk 0:00:38]} 35. f4 {[%clk 0:01:01]}  Rxc1 {[%clk 0:00:36]} 36. Rxc1 {[%clk 0:01:02]}  Rc8 {[%clk 0:00:30]} 37. Rc2 {[%clk 0:00:30]}  Kf7 {[%clk 0:00:27]} 38. Rb2 {[%clk 0:00:26]}  Qd6 {[%clk 0:00:28]} 39. Rd2 {[%clk 0:00:25]}  Qa3 {[%clk 0:00:24]} 40. Bb6 {[%clk 0:00:23]}  Qb4 {[%clk 0:00:22]} 41. f5 {[%clk 0:00:10]}  gxf5 {[%clk 0:00:21]} 42. exf5 {[%clk 0:00:11]}  Bd5 {[%clk 0:00:21]} 43. Bc5 {[%clk 0:00:09]}  Qg4 {[%clk 0:00:18]} 44. Rd4 {[%clk 0:00:08]}  Qg5 {[%clk 0:00:16]} 45. Qe2 {[%clk 0:00:05]}  Re8 {[%clk 0:00:15]} 46. Qf2 {[%clk 0:00:03]}  Rg8 {[%clk 0:00:15]} 47. g4 {[%clk 0:00:03]}  Qc1 {[%clk 0:00:13]} 48. Rxd5 {[%clk 0:00:02]}  cxd5 {[%clk 0:00:13]} 49. Bd4 {[%clk 0:00:03]}  Qg5 {[%clk 0:00:12]} 50. Qe2 {[%clk 0:00:03]}  Qxg4 {[%clk 0:00:12]} 51. Qe6+ {[%clk 0:00:03]}  Kf8 {[%clk 0:00:13]} 52. Qc8+ {[%clk 0:00:01]}  Kg7 {[%clk 0:00:14]} 53. Bxf6+ {[%clk 0:00:01]}  Kxf6 {[%clk 0:00:13]} 54. Qe6+ {[%clk 0:00:02]}  Kg5 {[%clk 0:00:13]} 55. Qxg8+ {[%clk 0:00:01]}  Kh4 {[%clk 0:00:12]} 56. Qxd5 {[%clk 0:00:01]}  Qg3+ {[%clk 0:00:11]} 57. Kh1 {[%clk 0:00:02]}  Qe1+ {[%clk 0:00:07]} 58. Kg2 {[%clk 0:00:02]}  Qe2+ {[%clk 0:00:08]} 59. Kg1 {[%clk 0:00:02]}  Qxh5 {[%clk 0:00:05]} 60. Qe4+ {[%clk 0:00:02]}  Qg4+ {[%clk 0:00:06]} 61. Qxg4+ {[%clk 0:00:01]}  Kxg4 {[%clk 0:00:07]} 62. Kg2 {[%clk 0:00:01]}  Kxf5 {[%clk 0:00:07]} 63. Kf3 {[%clk 0:00:02]}  e5 {[%clk 0:00:08]} 64. Ke3 {[%clk 0:00:03]}  e4 {[%clk 0:00:08]} 65. Ke2 {[%clk 0:00:04]}  Kf4 {[%clk 0:00:09]} 66. Kf2 {[%clk 0:00:05]}  e3+ {[%clk 0:00:09]} 67. Ke1 {[%clk 0:00:06]}  Kf3 {[%clk 0:00:10]} 68. Kf1 {[%clk 0:00:07]}  e2+ {[%clk 0:00:10]} 69. Ke1 {[%clk 0:00:07]}  h5 {[%clk 0:00:10]} 70. Kd2 {[%clk 0:00:07]}  Kf2 {[%clk 0:00:11]} 71. Kd3 {[%clk 0:00:08]}  e1=Q {[%clk 0:00:11]} 72. Kd4 {[%clk 0:00:09]}  Qe3+ {[%clk 0:00:12]} 73. Kd5 {[%clk 0:00:10]}  Qf4 {[%clk 0:00:12]} 74. Kc6 {[%clk 0:00:10]}  Qe5 {[%clk 0:00:12]} 75. Kb7 {[%clk 0:00:11]}  Qd6 {[%clk 0:00:12]} 76. Kc8 {[%clk 0:00:12]}  Qe7 {[%clk 0:00:12]} 77. Kb8 {[%clk 0:00:12]}  Ke3 {[%clk 0:00:13]} 78. Ka8 {[%clk 0:00:13]}  Kd4 {[%clk 0:00:14]} 79. Kb8 {[%clk 0:00:14]}  Kc5 {[%clk 0:00:14]} 80. Ka8 {[%clk 0:00:15]}  Kb6 {[%clk 0:00:15]} 81. Kb8 {[%clk 0:00:16]}  Qd8# {[%clk 0:00:15]} 0-1


[Site "https://www.chess.com"]

[Event "Titled Tuesday Blitz May 2 Late 2023"]
[White "Kosakowski, Jakub"]
[Black "Bortnyk, Olexandr"]
[WhiteFideId "1185080"]
[BlackFideId "14120828"]
[WhiteElo "2488"]
[BlackElo "2734"]
[Result "1-0"]
[Round "05"]
[TimeControl "180+2"]
[Date "2023.05.02"]
[WhiteClock "0:00:12"]
[BlackClock "0:00:03"]

1. Nf3 {[%clk 0:02:55]}  Nf6 {[%clk 0:02:57]} 2. d4 {[%clk 0:02:54]}  b6 {[%clk 0:02:54]} 3. Bg5 {[%clk 0:02:53]}  Bb7 {[%clk 0:02:51]} 4. Bxf6 {[%clk 0:02:44]}  exf6 {[%clk 0:02:46]} 5. Nbd2 {[%clk 0:02:43]}  d5 {[%clk 0:01:54]} 6. e3 {[%clk 0:02:41]}  Bd6 {[%clk 0:01:51]} 7. Bd3 {[%clk 0:02:38]}  O-O {[%clk 0:01:51]} 8. c3 {[%clk 0:02:34]}  c5 {[%clk 0:01:49]} 9. Qc2 {[%clk 0:02:33]}  g6 {[%clk 0:01:49]} 10. h4 {[%clk 0:02:31]}  c4 {[%clk 0:01:49]} 11. Be2 {[%clk 0:02:30]}  h5 {[%clk 0:01:41]} 12. e4 {[%clk 0:02:09]}  dxe4 {[%clk 0:01:30]} 13. Nxe4 {[%clk 0:02:10]}  Bf4 {[%clk 0:01:21]} 14. O-O {[%clk 0:01:56]}  Re8 {[%clk 0:01:12]} 15. Ng3 {[%clk 0:01:54]}  Qc7 {[%clk 0:01:06]} 16. Rae1 {[%clk 0:01:45]}  Nd7 {[%clk 0:00:58]} 17. Kh2 {[%clk 0:00:50]}  f5 {[%clk 0:00:40]} 18. b3 {[%clk 0:00:41]}  cxb3 {[%clk 0:00:26]} 19. axb3 {[%clk 0:00:42]}  Nf6 {[%clk 0:00:26]} 20. Bc4 {[%clk 0:00:42]}  Ng4+ {[%clk 0:00:17]} 21. Kh3 {[%clk 0:00:42]}  Bxf3 {[%clk 0:00:02]} 22. gxf3 {[%clk 0:00:42]}  Nf6 {[%clk 0:00:03]} 23. Nxf5 {[%clk 0:00:40]}  Qd7 {[%clk 0:00:01]} 24. Rg1 {[%clk 0:00:32]}  Rxe1 {[%clk 0:00:01]} 25. Rxg6+ {[%clk 0:00:32]}  Kf8 {[%clk 0:00:01]} 26. Rxf6 {[%clk 0:00:33]}  Rh1+ {[%clk 0:00:01]} 27. Kg2 {[%clk 0:00:33]}  Rh2+ {[%clk 0:00:02]} 28. Kg1 {[%clk 0:00:33]}  Re8 {[%clk 0:00:02]} 29. Qb1 {[%clk 0:00:22]}  b5 {[%clk 0:00:03]} 30. Rxf7+ {[%clk 0:00:22]}  Qxf7 {[%clk 0:00:03]} 31. Bxf7 {[%clk 0:00:22]}  Kxf7 {[%clk 0:00:04]} 32. Ng3 {[%clk 0:00:15]}  Bxg3 {[%clk 0:00:05]} 33. Qf5+ {[%clk 0:00:15]}  Kg7 {[%clk 0:00:04]} 34. Qg5+ {[%clk 0:00:16]}  Kf7 {[%clk 0:00:02]} 35. Qxh5+ {[%clk 0:00:11]}  Kf8 {[%clk 0:00:02]} 36. Qh6+ {[%clk 0:00:09]}  Kf7 {[%clk 0:00:02]} 37. Qh7+ {[%clk 0:00:10]}  Kf6 {[%clk 0:00:02]} 38. Qh6+ {[%clk 0:00:10]}  Kf7 {[%clk 0:00:03]} 39. Qh5+ {[%clk 0:00:11]}  Kf8 {[%clk 0:00:03]} 40. Qf5+ {[%clk 0:00:11]}  Kg8 {[%clk 0:00:03]} 41. Qg6+ {[%clk 0:00:11]}  Kf8 {[%clk 0:00:03]} 42. Qxg3 {[%clk 0:00:12]} 1-0


[Site "https://www.chess.com"]